Cogmind - Beta 12 @@@ ROGUE MODE // 2024.01.22 @ 14:39:28 Player: Ev Result: Self-destructed Performance ------------- Evolutions (2) 1000 Regions Visited (4) 800 Robots Destroyed (28) 140 Value Destroyed (644) 644 Prototype IDs (5) 100 Alien Tech Used (0) 0 Bonus (0) 0 TOTAL SCORE: 2684 Bonus ------- None Cogmind --------- Core Integrity 436/550 Matter 250/300 Energy 62/140 System Corruption 6% Temperature Cool (0) Movement Hovering (56) Location -8/Storage Parts ------- > --- POWER (1) -------- Light Deuterium Engine > --- PROPULSION (3) --- Gravmag System Gravmag System > --- UTILITY (5) ------ Improved Heat Sink Weight Redist. System > --- WEAPON (2) ------- Flak Gun Flak Gun > --- INVENTORY (5) ---- Improved EM Pulse Cannon Improved EM Pulse Cannon Peak State ------------ > --- POWER ------------ Light Deuterium Engine > --- PROPULSION ------- Gravmag System Gravmag System > --- UTILITY ---------- Improved Heat Sink Weight Redist. System Active Sensor Suite > --- WEAPON ----------- Flak Gun Flak Gun > --- INVENTORY -------- Improved EM Pulse Cannon Improved EM Pulse Cannon [Rating: 51] Favorites ----------- Power Light Ion Engine Engine Light Ion Engine Propulsion Aluminum Leg Treads Improved Treads Leg Aluminum Leg Hover Unit Gravmag System Flight Unit Flight Unit Utility Hardened Light Armor Plating Device Weight Redist. System Storage Small Storage Unit Processor Targeting Computer Protection Hardened Light Armor Plating Weapon Medium Laser Energy Gun Medium Laser Energy Cannon Improved EM Pulse Cannon Ballistic Gun Flak Gun Build | -11 -10 -9 -8 -8 ------- Run | Jun Mat Mat Mat Sto Slots Evolved 4 | . . 2 2 . Power . | . . . . . Propulsion 1 | . . . 1 . Utility 3 | . . 2 1 . Weapon . | . . . . . Parts Attached 33 | 6 5 7 13 2 Power 4 | 1 . 2 1 . Engine 4 | 1 . 2 1 . Core . | . . . . . Reactor . | . . . . . Propulsion 11 | 2 2 3 4 . Treads 1 | . . 1 . . Leg 2 | 2 . . . . Wheel . | . . . . . Hover 4 | . . . 4 . Flight 4 | . 2 2 . . Utility 12 | 1 3 2 4 2 Device 5 | . 1 . 2 2 Storage 2 | 1 . . 1 . Processor 1 | . 1 . . . Hackware . | . . . . . Protection 4 | . 1 2 1 . Artifact . | . . . . . Weapon 6 | 2 . . 4 . Energy Gun 2 | 2 . . . . Energy Cannon 2 | . . . 2 . Ballistic Gun 2 | . . . 2 . Ballistic Cannon . | . . . . . Launcher . | . . . . . Special Weapon . | . . . . . Impact Weapon . | . . . . . Slashing Weapon . | . . . . . Piercing Weapon . | . . . . . Special Melee Weapon . | . . . . . Unidentified Prototypes 1 | . . . . 1 Parts Lost 6 | . . 2 4 . Power . | . . . . . Propulsion 4 | . . 2 2 . Utility 2 | . . . 2 . Weapon . | . . . . . Highest Loss Streak 4 | . . 2 4 . To Critical Strikes . | . . . . . Average Slot Usage (%) 94 | . 99 87 92 90 Engine 12 | . 14 11 9 9 Treads 2 | . . 7 . . Leg 11 | . 23 . . . Hover 4 | . . . 20 18 Flight 3 | . 4 2 2 . Device 7 | . 1 11 14 36 Storage 1 | . . . 2 . Processor 5 | . 11 . . . Protection 21 | . 13 33 24 9 Energy Gun 21 | . 28 22 4 . Ballistic Gun 2 | . . . 13 18 Naked Turns . | . . . . . Heaviest Build 23 | 12 12 16 23 19 Greatest Support 33 | 20 20 29 33 24 Greatest Overweight (x) 1 | . . 1 1 . Average Overweight (x) . | . . . . . Largest Inventory Capacity 8 | 8 8 5 8 5 Average Capacity 5 | 7 5 5 5 5 Most Carried 8 | 4 5 5 8 5 Average Carried 3 | 1 3 2 5 4 Final Capacity 8 | 8 5 5 5 5 Final Carried 5 | 1 4 4 5 2 Class Distribution -------------------- 95% | Mutant 4% | Scavenger-Mutant Dominant Class ---------------- Mutant | -10/Materials Mutant | -9/Materials Mutant | -8/Materials Mutant | -8/Storage Resources | -11 -10 -9 -8 -8 ----------- Run | Jun Mat Mat Mat Sto Matter Collected 670 | 260 50 48 312 . Remotely . | . . . . . Salvage Created 962 | . 316 330 316 . Parts 50 | . 18 14 18 . Haulers Intercepted 2 | . 2 . . . Recyclers Shooed 2 | . . 1 1 . Parts Field Recycled . | . . . . . Retrieved Matter . | . . . . . Parts Self-Destructed . | . . . . . Prevented . | . . . . . Kills | -11 -10 -9 -8 -8 ------- Run | Jun Mat Mat Mat Sto Combat Hostiles Destroyed 19 | . 6 5 8 . Guns 19 | . 6 5 8 . Classes Destroyed 11 | . 4 3 4 . Worker 1 | . . 1 . . Builder 1 | . . . 1 . Hauler 2 | . 2 . . . Recycler 3 | . . 2 1 . Watcher 2 | . 2 . . . Swarmer 6 | . 3 3 . . Cutter 2 | . . . 2 . Grunt 7 | . 3 . 4 . Brawler 1 | . . . 1 . Sentry 2 | . . 2 . . Heavy 1 | . . . 1 . Best Kill Streak 6 | . 5 4 6 . Combat Bots Only 5 | . 3 3 5 . Max Kills in Single Turn 2 | . 1 2 2 . Gunslinging 1 | . . 1 . . Exploded . | . . . . . Melee . | . . . . . Uniques/NPCs Destroyed . | . . . . . Combat | -11 -10 -9 -8 -8 -------- Run | Jun Mat Mat Mat Sto Damage Taken 1029 | . 159 204 666 . Core 158 | . 24 20 114 . Absorbed by Shields 24 | . . . 24 . Redirected to Shielding 117 | . . 38 79 . Core Remaining (%) 95 | 100 90 95 . . Volleys Fired 68 | . 28 18 22 . Largest 2 | . 2 2 2 . Hottest 100 | . 100 100 56 . Shots Fired 136 | . 56 36 44 . Gun 136 | . 56 36 44 . Cannon . | . . . . . Launcher . | . . . . . Special . | . . . . . Kinetic 44 | . . . 44 . Thermal 92 | . 56 36 . . Explosive . | . . . . . Electromagnetic . | . . . . . Robot Hit Streak 8 | . 8 8 7 . Robot Miss Streak 11 | . 3 4 11 . Penetration Max . | . . . . . Secondary Targets 3 | . . 1 2 . Max Gunslinging Chain 1 | . . 1 1 . Shots Hit Robots 98 | . 34 24 40 . Core Hits 77 | . 16 12 49 . Critical Kills . | . . . . . Critical Parts Destroyed . | . . . . . Critical Strikes 5 | . 5 . . . Burn 5 | . 5 . . . Melee Attacks . | . . . . . Impact . | . . . . . Slashing . | . . . . . Piercing . | . . . . . Sneak Attacks . | . . . . . Combat Hostiles . | . . . . . Follow-up Attacks . | . . . . . Damage Inflicted 1463 | . 440 316 707 . Guns 1463 | . 440 316 707 . Cannons . | . . . . . Explosions . | . . . . . Melee . | . . . . . Ramming . | . . . . . Kinetic 707 | . . . 707 . Thermal 756 | . 440 316 . . Explosive . | . . . . . Electromagnetic . | . . . . . Impact . | . . . . . Slashing . | . . . . . Piercing . | . . . . . Highest Corruption 6 | . . . 6 6 Average Corruption 6 | . . . 6 6 Corruption Purged . | . . . . . Corruption Blocked . | . . . . . Effects 2 | . . . 1 1 Message Errors 1 | . . . 1 . Energy Discharges 1 | . . . . 1 Overload Shots . | . . . . . Overflow Damage . | . . . . . Projectiles . | . . . . . Explosions . | . . . . . Melee . | . . . . . Knockbacks . | . . . . . Impact . | . . . . . Kinetic . | . . . . . Secondary . | . . . . . Self-Inflicted Damage . | . . . . . Shots . | . . . . . Rammed . | . . . . . Targets Rammed . | . . . . . Kicked . | . . . . . Crushed . | . . . . . Highest Temperature 386 | . 386 272 63 . Average Temperature 121 | . 131 122 36 . Received Heat Transfer 276 | . 48 63 165 . Effects 3 | . 3 . . . Shutdowns 1 | . 1 . . . Energy Bleed 1 | . 1 . . . Damage (minor) 1 | . 1 . . . Siege Activations . | . . . . . Robots Corrupted . | . . . . . Combat Hostiles . | . . . . . Parts Fried . | . . . . . Impact Corruptions . | . . . . . Robots Melted 1 | . 1 . . . Combat Hostiles . | . . . . . Parts Melted 8 | . 4 4 . . Heat Transferred 2590 | . 1665 925 . . Parts Sabotaged . | . . . . . Parts Stolen . | . . . . . Parts Stripped . | . . . . . Power Chain Reactions . | . . . . . Missiles Intercepted . | . . . . . Alert | -11 -10 -9 -8 -8 ------- Run | Jun Mat Mat Mat Sto Peak Influence 274 | . 125 212 274 115 Initial 115 | . . 42 89 115 Average 89 | . 54 126 144 115 Maximum Alert Level 1 | . . 1 1 . Low Security (%) 96 | 100 100 99 82 100 Level 1 3 | . . . 18 . Level 2 . | . . . . . Level 3 . | . . . . . Level 4 . | . . . . . Level 5 . | . . . . . High Security . | . . . . . Max Security . | . . . . . Squads Dispatched 2 | . . . 2 . Investigation . | . . . . . Extermination . | . . . . . Reinforcement 2 | . . . 2 . Assault . | . . . . . Garrison . | . . . . . Intercept . | . . . . . Searches Triggered . | . . . . . Construction Impeded . | . . . . . Haulers Reinforced . | . . . . . Active Scanning Responses . | . . . . . Cargo Convoy Interrupts . | . . . . . Stealth | -11 -10 -9 -8 -8 --------- Run | Jun Mat Mat Mat Sto Distress Signals . | . . . . . Communications Jammed . | . . . . . Distress Signals . | . . . . . Times Spotted 28 | . 10 9 9 . Peak Tracking Total 4 | . 3 4 4 . Tactical Retreats 2 | . 1 . 1 . Traps | -11 -10 -9 -8 -8 ------- Run | Jun Mat Mat Mat Sto Traps Triggered . | . . . . . Indirectly . | . . . . . Trap Hack Attempts . | . . . . . Triggered . | . . . . . Disarmed . | . . . . . Reprogrammed . | . . . . . Reused . | . . . . . Traps Extracted . | . . . . . Installed . | . . . . . Triggered . | . . . . . Machines | -11 -10 -9 -8 -8 ---------- Run | Jun Mat Mat Mat Sto Machines Disabled . | . . . . . Max in Single Turn . | . . . . . Machines Repaired . | . . . . . Machines Sabotaged . | . . . . . Overloaded Fab Kills . | . . . . . Hacking | -11 -10 -9 -8 -8 --------- Run | Jun Mat Mat Mat Sto Machines Accessed 7 | . 6 . . 1 Terminals 7 | . 6 . . 1 Fabricators . | . . . . . Repair Stations . | . . . . . Recycling Units . | . . . . . Scanalyzers . | . . . . . Garrison Access . | . . . . . Total Hacks 22 | . 21 . . 1 Successful 10 | . 9 . . 1 Failed 12 | . 12 . . . Catastrophic 1 | . 1 . . . Database Lockouts . | . . . . . Manual 8 | . 8 . . . Terminals 22 | . 21 . . 1 Fabricators . | . . . . . Repair Stations . | . . . . . Recycling Units . | . . . . . Scanalyzers . | . . . . . Garrison Access . | . . . . . Terminal Hacks 9 | . 8 . . 1 Robot Analysis 1 | . 1 . . . Prototype ID Bank 2 | . 2 . . . Open Door 1 | . . . . 1 Emergency Access Points 1 | . 1 . . . Alert Level 1 | . 1 . . . Locate Traps 1 | . 1 . . . Zone Layout 2 | . 2 . . . Fabricator Hacks . | . . . . . Repair Station Hacks . | . . . . . Recycling Unit Hacks . | . . . . . Scanalyzer . | . . . . . Garrison Access Hacks . | . . . . . Unauthorized Hacks 1 | . 1 . . . Terminals 1 | . 1 . . . Operators 1 | . 1 . . . Fabricators . | . . . . . Repair Stations . | . . . . . Recycling Units . | . . . . . Scanalyzers . | . . . . . Garrison Access . | . . . . . Data Cores Recovered . | . . . . . Used . | . . . . . Hacking Detections 6 | . 6 . . . Full Trace Events 1 | . 1 . . . Feedback Events . | . . . . . Feedback Blocked . | . . . . . Robot Schematics Acquired . | . . . . . Robots Built . | . . . . . Authchips . | . . . . . Time . | . . . . . Total Robot Build Rating . | . . . . . Part Schematics Acquired . | . . . . . Parts Built . | . . . . . Authchips . | . . . . . Time . | . . . . . Total Part Build Rating . | . . . . . Parts Repaired . | . . . . . Time . | . . . . . Parts Recycled . | . . . . . Recycled Matter . | . . . . . Retrieved Matter . | . . . . . Retrieved Components . | . . . . . Parts Scanalyzed . | . . . . . Part Schematics Acquired . | . . . . . Parts Damaged . | . . . . . Bothacking | -11 -10 -9 -8 -8 ------------ Run | Jun Mat Mat Mat Sto Used RIF Installer . | . . . . . Robots Hacked . | . . . . . Non-combat . | . . . . . Combat . | . . . . . Robot Hacks Applied . | . . . . . Relay Couplers Released . | . . . . . Fabnet Peak Effective % . | . . . . . Robots Rewired . | . . . . . Allies Hacked . | . . . . . Hacks Repelled . | . . . . . Allies | -11 -10 -9 -8 -8 -------- Run | Jun Mat Mat Mat Sto Total Allies . | . . . . . Largest Group . | . . . . . Highest-Rated Group . | . . . . . Highest-Rated Ally . | . . . . . Total Orders . | . . . . . Ally Attacks . | . . . . . Total Damage . | . . . . . Kills . | . . . . . Allies Corrupted . | . . . . . Allies Melted . | . . . . . Intel | -11 -10 -9 -8 -8 ------- Run | Jun Mat Mat Mat Sto Robot Analysis Total 1 | . 1 . . . Derelict Logs Recovered . | . . . . . Drone Launches . | . . . . . Drone Recoveries . | . . . . . Exploration | -11 -10 -9 -8 -8 ------------- Run | Jun Mat Mat Mat Sto Turns Passed 1292 | 65 609 357 250 11 Spaces Moved 896 | 40 418 210 218 10 Core 37 | 8 . 28 1 . Treads 139 | . . 139 . . Legs 372 | 32 340 . . . Wheels . | . . . . . Hover 140 | . . . 130 10 Flight 208 | . 78 43 87 . Fastest Speed 37 | 50 37 37 37 56 Average Speed 95 | 106 104 127 46 56 Slowest Speed 160 | 120 120 160 100 56 Overloaded Moves . | . . . . . Propulsion Burnouts . | . . . . . Robots Hopped . | . . . . . Cave-ins Triggered 1 | . . . 1 . Exploration Rate (%) 25 | 3 81 20 18 4 Regions Visited 4 Branch Regions 1 Pre-discovered Areas . | . . . . . Known Exits Taken . | . . . . . Unknown Exits Taken 4 | 1 1 1 1 . Scrap Searched . | . . . . . Spaces Dug . | . . . . . Terrain Destroyed . | . . . . . Melee . | . . . . . Projectile . | . . . . . AOE . | . . . . . Terrain Rammed . | . . . . . Walls Destroyed . | . . . . . Machines Disabled . | . . . . . Actions | -11 -10 -9 -8 -8 --------- Run | Jun Mat Mat Mat Sto Total 1198 | 62 533 262 325 16 Wait 144 | 10 72 18 44 . Move 892 | 39 417 209 217 10 Hop . | . . . . . Pick Up 39 | 7 8 7 17 . Fast Attach 1 | . . . . 1 Attach 19 | 6 1 4 7 1 Detach . | . . . . . Swap 13 | . 4 3 6 . Drop 22 | . 3 3 12 4 Fire 68 | . 28 18 22 . Melee . | . . . . . Ram . | . . . . . Kick . | . . . . . Crush . | . . . . . Escape Stasis . | . . . . . Rewire . | . . . . . Trap . | . . . . . Miscellaneous . | . . . . . Route ------- -11/Junkyard -10/Materials (discovered 3 exits: [*Mat x2] / [*Min]) -9/Materials -8/Materials -8/Storage History --------- Turn | Location | Event 15 | -11/Junkyard | Discovered new exit (range 15) 66 | -11/Junkyard | Entered Materials 321 | -10/Materials | Build established: Mutant 378 | -10/Materials | Discovered new exit (range 6) 494 | -10/Materials | Discovered new exit (range 14) 603 | -10/Materials | Discovered new exit (range 3) 675 | -10/Materials | Entered another Materials area 675 | -9/Materials | Evolved 2 slots: Utility x2 1026 | -9/Materials | Discovered new exit (range 15) 1032 | -9/Materials | Entered another Materials area 1032 | -8/Materials | Evolved 2 slots: Propulsion x1, Utility x1 1225 | -8/Materials | Discovered new exit (range 7) 1249 | -8/Materials | Crushed by falling debris 1274 | -8/Materials | Found Prototype Device 1280 | -8/Materials | Lost 4 parts (2n2u) 1282 | -8/Materials | Entered Storage 1291 | -8/Storage | Identified Active Sensor Suite 1293 | -8/Storage | Self-destructed Last Messages --------------- 01273_ Dropped Imp. EM Pulse Cannon. 01274_ Acquired Prototype Device. 01275_ K-01 Serf collects debris. 01275_ Acquired 35 matter. 01276_ Dropped Surge Thruster. 01279_ K-01 Serf collects debris. 01279_ Acquired Imp. EM Pulse Cannon. LOCATION=UNKNOWN GOAL=ESCAPE 01285_ System corrupted: Energy discharge (-37). 01287_ Connecting with Door Terminal... 01287_ Current location identified: Storage >>Open(Door) Sealed Heavy Doors opened. 01288_ Acquired Drone Bay. 01290_ Dropped Drone Bay. 01290_ Dropped Imp. Light Armor Plating. 01291_ Dropped Shield Generator. 01291_ Identified Active Sensor Suite. 01292_ Discarded Active Sensor Suite. Map ----- +----------------------------------------------------+ | ???????????????????????????????????????????????? | | ???????????????????????????????????????????????? | | ???????????????????????????????????????????????? | | ???????????????????????????????????????????????? | | ???????????????????????????????????????????????? | | ???????????????????????????????????????????????? | | ???????????????????????????????????????????????? | | ???????????????????????????????????????????????? | | ???????????????????????????????????????????????? | | ???????????????????????????????????????????????? | | ???????????????????????????????????????????????? | | ???????????????????????????????????????????????? | | ???????????????????????????????????????????????? | | ???????????????????????????????????????????????? | | ???????????????????????????????????????????????? | | ???????????????????????????????????????????????? | | ???????????????????????????????????????????????? | | ???????????????????????????????????????????????? | | ???????????????????????????????????????????????? | | ?????????????####+#########+######?????????????? | | ???????????? #?????????????? | | ???????????? #?????????????? | | ???????????? #?????????????? | | ????????????????#+#########+######?????????????? | | ?????????????????????###### #?????????????????? | | ?????????????????????#!!!@# #?????????????????? | | ?????????????????????# !! #?????????????????? | | ?????????????????????#!!!!#T##?????????????????? | | ?????????????????????########??????????????????? | | ???????????????????????????????????????????????? | | | | | | | | | | | | | | | | | | | | | | | | | | | | | | | | | | | | | | | | | +----------------------------------------------------+ Best States ------------- Heat Dissipation 45 Energy Generation 14 Energy Capacity 140 Matter Stores 300 Matter Capacity 300 Sight Range 16 Terrain Scan Density 10 Additional Mass Support 6 Armor Coverage 150 Propulsion Shielding 33 Weapon Shielding 33 Evasion (%) 62 Targeting Accuracy 5 Recoil Reduction 1 Item Schematics ----------------- None Robot Schematics ------------------ None Fabricated ------------ Nothing Alien Tech Used ----------------- None Achievements -------------- None Challenges ------------ None Game ------ Seed MiningHypercooledPod Manual? 0 Play Time 00:15:41 Cumulative 36.2 hours Start 2024.01.22 @ 14:21:58 End 2024.01.22 @ 14:39:28 Sessions 1 Manual Loads 0 Difficulty Rogue Special Mode None Game No. 77 Rogue 77 Adventurer 0 Explorer 0 Win Type - Total 0 Types 0/0/0/0/0/0/0/0/0 Lore% 23 Gallery% 28 Achievement% 20 Wizard Run 0 Options --------- ASCII 0 Keyboard 0 Movement Mouse Keybinds 0 Fullscreen 1 Font 24/Smallcaps Map View 76x50 Tactical HUD 1 Map Filters NONE Filters NONE Steam 1 RUN: fe21a053-064d-4e08-85e3-81b96f66e5ef